bitfinex/quotes_ETHUSD_20250923
["timestamp","ask_amount","ask_price","bid_price","bid_amount"]
[1758652817891,0.35972344,4165.4,4165.2,15.1766]
[1758652818088,0.35972344,4165.3,4165.2,14.5]
[1758652818259,0.13489629,4165.3,4165.2,14.5]
[1758652818657,0.13489629,4165.3,4165.2,15.1766]
[1758652818868,2.76040767,4165.3,4165.2,15.1766]
[1758652819269,0.35962022,4165.3,4165.2,15.1766]
[1758652820207,0.13489629,4165.3,4165.2,16.69426]
[1758652821290,0.13489629,4165.3,4165.2,15.1766]
[1758652822584,2.53568374,4165.3,4165.2,14.7337]
[1758652822789,2.53568374,4165.3,4165.2,14.5]
[1758652823998,2.76015535,4165.3,4165.2,14.5]
[1758652824318,0.3593679,4165.3,4165.2,14.7337]
[1758652824469,0.3593679,4165.3,4165.2,15.1766]
[1758652824670,2.76015535,4165.3,4165.2,15.1766]
[1758652825168,0.3593679,4165.3,4165.2,15.1766]
[1758652825604,2.76015535,4165.3,4165.2,14.5]
[1758652825764,0.3593679,4165.3,4165.2,14.5]
[1758652826214,0.3593679,4165.3,4165.2,14.7337]
[1758652827014,2.76015535,4165.3,4165.2,14.5]
[1758652827170,0.3593679,4165.3,4165.2,14.5]
[1758652827369,0.13489629,4165.3,4165.2,14.5]
[1758652827569,0.3593679,4165.3,4165.2,14.7337]
[1758652828474,0.3593679,4165.3,4165.2,0.6766]
[1758652828685,2.76015535,4165.3,4165.2,0.6766]
[1758652828861,2.76015535,4165.3,4164.8,4.3247]
[1758652828862,0.12,4165.2,4164.8,4.3247]
[1758652829067,0.13489629,4165.1,4164.9,15.1766]
[1758652829262,0.13489629,4165.0,4164.9,14.9429]
[1758652829996,0.13489629,4165.0,4164.9,15.1766]
[1758652830786,0.12,4164.9,4164.6,0.004]
[1758652831016,0.50212544,4164.8,4164.6,0.004]
[1758652831222,0.22441862,4164.9,4164.7,0.6766]
[1758652831518,0.22441862,4164.9,4164.6,0.004]
[1758652831519,0.13465847,4164.8,4164.6,0.004]
[1758652831723,0.13465847,4164.7,4164.6,0.004]
[1758652832566,0.13465847,4164.7,4164.6,0.6806]
[1758652833395,0.13465847,4164.7,4164.6,0.004]
[1758652833611,0.13465847,4164.7,4164.6,0.4469]
[1758652833799,0.13465847,4164.7,4164.6,0.6806]
[1758652833984,2.5357918,4164.7,4164.6,0.2377]
[1758652834193,0.13465847,4164.7,4164.6,0.6806]
[1758652834672,0.13465847,4164.7,4164.6,0.004]
[1758652834867,3.68301365,4164.7,4164.6,0.004]
[1758652835069,7.55846347,4164.7,4164.6,0.004]
[1758652836593,8.07575186,4164.7,4164.6,0.004]
[1758652837426,7.64585186,4164.7,4164.6,0.004]
[1758652838627,8.07575186,4164.7,4164.6,0.004]
[1758652838938,7.64585186,4164.7,4164.6,0.004]
[1758652839699,7.42475186,4164.7,4164.6,0.004]
[1758652841037,7.42463815,4164.7,4164.6,0.004]
[1758652842127,14.61464765,4164.7,4164.6,0.004]
[1758652843209,14.83574765,4164.7,4164.6,0.004]
[1758652843416,15.30274765,4164.7,4164.6,0.004]
[1758652843598,18.70464765,4164.7,4164.6,0.004]
[1758652844640,12.95025112,4164.7,4164.6,0.6834]
[1758652844973,12.95025112,4164.7,4164.6,0.004]
[1758652845866,13.74225112,4164.7,4164.6,0.004]
[1758652846068,13.96331081,4164.7,4164.6,0.004]
[1758652846285,16.40614841,4164.7,4164.6,0.004]
[1758652846453,16.18504841,4164.7,4164.6,0.004]
[1758652846835,16.87314841,4164.7,4164.6,0.004]
[1758652848271,17.39025834,4164.7,4164.6,0.004]
[1758652851052,16.70215834,4164.7,4164.6,0.004]
[1758652851252,16.92325834,4164.7,4164.6,0.004]
[1758652851771,16.70215834,4164.7,4164.6,0.004]
[1758652851977,17.39025834,4164.7,4164.6,0.004]
[1758652852340,20.79115834,4164.7,4164.6,0.004]
[1758652855787,20.79115834,4164.7,4164.6,0.6834]
[1758652856975,20.79144619,4164.7,4164.6,0.6834]
[1758652857197,20.79144619,4164.7,4164.6,0.004]
[1758652858451,20.79178326,4164.7,4164.6,0.004]
[1758652858647,20.79178326,4164.7,4164.6,0.6834]
[1758652859180,20.79178326,4164.7,4164.6,0.2335]
[1758652859348,20.79178326,4164.7,4164.6,0.004]
[1758652863821,22.12635161,4164.7,4164.6,0.004]
[1758652864016,2.40136397,4164.3,4164.2,0.004]
[1758652864193,26.73131588,4164.3,4164.2,0.004]
[1758652864396,27.41941588,4164.3,4164.2,0.004]
[1758652864595,20.22941588,4164.3,4164.2,0.004]
[1758652864795,21.09378934,4164.3,4164.2,0.004]
[1758652865219,21.09406414,4164.3,4164.2,0.004]
[1758652865521,21.09474828,4164.3,4164.2,0.004]
[1758652867320,20.40664828,4164.3,4164.2,0.004]
[1758652867501,19.54200002,4164.3,4164.2,0.004]
[1758652868304,19.76310002,4164.3,4164.2,0.004]
[1758652868504,20.23010002,4164.3,4164.2,0.004]
[1758652871535,19.54200002,4164.3,4164.2,0.004]
[1758652871707,20.18970819,4164.3,4164.2,0.004]
[1758652873940,9.42490501,4164.3,4164.2,0.4552]
[1758652874140,8.15786044,4164.3,4164.2,0.7021]
[1758652874444,7.36586044,4164.3,4164.2,0.7021]
[1758652874812,8.15786044,4164.3,4164.2,0.7021]
[1758652875033,11.15786044,4164.3,4164.2,0.7021]
[1758652875541,12.72157556,4164.3,4164.2,0.7021]
[1758652875942,12.72157556,4164.3,4164.2,0.004]
[1758652876649,20.48537874,4164.3,4164.2,0.004]
[1758652876864,2.40165233,4163.8,4163.7,0.004]
[1758652877016,17.48184205,4163.8,4163.7,0.004]
[1758652877215,20.10377585,4163.8,4163.7,0.004]
[1758652877744,20.59088408,4163.8,4163.7,0.004]
[1758652878532,20.59052584,4163.8,4163.7,0.004]
[1758652879826,12.82672266,4163.8,4163.7,0.004]
[1758652880023,12.82672266,4163.8,4163.7,0.7021]
[1758652880228,6.66272266,4163.8,4163.7,0.2509]
[1758652880430,10.72189879,4163.8,4163.7,0.004]
[1758652880928,10.72189879,4163.8,4163.1,0.02]
[1758652880929,0.792,4163.5,4163.1,0.02]
[1758652881261,6.19399846,4163.2,4163.1,0.02]
[1758652881459,11.15713669,4163.2,4163.1,0.02]
[1758652881638,11.81433669,4163.2,4163.1,0.02]
[1758652881835,14.28871366,4163.2,4163.1,0.02]
[1758652882040,14.07711465,4163.2,4163.1,1e-08]
[1758652882310,2.40235794,4162.6,4162.1,0.02]
[1758652882458,6.19457556,4162.2,4162.1,0.02]
[1758652882672,6.67460386,4162.2,4162.1,0.02]
[1758652882962,11.27742041,4162.2,4162.1,0.02]
[1758652883272,10.75960386,4162.2,4162.1,0.02]
[1758652883956,10.75960386,4162.2,4162.1,0.7181]
[1758652884568,17.04074206,4162.2,4162.1,0.2669]
[1758652884943,10.75960386,4162.2,4162.1,0.2669]
[1758652885144,10.75960386,4162.2,4162.1,0.7181]
[1758652885459,8.3580283,4162.2,4162.1,0.7181]
[1758652885672,8.3575231,4162.2,4162.1,0.7181]
[1758652885988,10.76009866,4162.2,4162.1,0.7181]
[1758652886662,8.3575231,4162.2,4162.1,0.7181]
[1758652886863,10.76009866,4162.2,4162.1,0.7181]
[1758652887185,6.67409866,4162.2,4162.1,0.7181]
[1758652887389,10.76009866,4162.2,4162.1,0.7181]
[1758652887536,12.20381378,4162.2,4162.1,0.02]
[1758652887739,18.48495198,4162.2,4162.1,0.02]
[1758652888290,18.48495198,4162.2,4162.1,0.4712]
[1758652888471,18.48495198,4162.2,4162.1,0.2669]
[1758652889489,18.48495198,4162.2,4162.1,0.02]
[1758652889687,18.48488688,4162.2,4162.1,0.02]
[1758652890177,18.48488688,4162.2,4162.1,0.2669]
[1758652890351,16.92117176,4162.2,4162.1,0.2669]
[1758652891440,16.92117176,4162.2,4162.1,0.02]
[1758652891644,17.57837176,4162.2,4162.1,0.02]
[1758652892175,16.92117176,4162.2,4162.1,0.02]
[1758652893778,16.9205494,4162.2,4162.1,0.02]
[1758652894077,18.91857431,4162.2,4162.1,0.02]
[1758652894865,12.63743611,4162.2,4162.1,0.2669]
[1758652895080,12.63743611,4162.2,4162.1,0.7181]
[1758652895280,12.63743611,4162.2,4162.1,0.02]
[1758652895843,8.55143611,4162.2,4162.1,0.02]
[1758652896070,0.10883564,4162.2,4162.1,0.7181]
[1758652896243,2.078,4163.0,4162.1,6.9992382]
[1758652896244,3.112,4163.0,4162.1,6.9992382]
[1758652896467,2.59457554,4163.6,4162.1,6.9992382]
[1758652896468,4.085,4163.1,4162.3,2.40250001]
[1758652896674,3.0,4163.0,4162.4,16.13827382]
[1758652896993,3.0,4163.0,4162.5,0.6981]
[1758652897183,3.0,4163.0,4162.4,3.34260853]
[1758652897343,3.0,4163.0,4162.5,0.6981]
[1758652897549,2.52214364,4163.0,4162.6,15.1981]
[1758652897750,5.52214364,4163.0,4162.6,14.5]
[1758652897990,3.12,4163.0,4162.7,0.6981]
[1758652898146,3.0,4162.8,4162.1,0.02]
[1758652898351,8.68371376,4162.2,4162.1,0.02]
[1758652898588,16.56071376,4162.2,4162.1,0.02]
[1758652900695,10.27957556,4162.2,4162.1,0.02]
[1758652900850,10.52327556,4162.2,4162.1,0.02]
[1758652901047,10.27957556,4162.2,4162.1,0.02]
[1758652901486,6.19457556,4162.2,4162.1,0.7304]
[1758652901676,10.27857556,4162.2,4162.1,0.7304]
[1758652903304,10.27857556,4162.2,4162.1,0.02]
[1758652903451,11.75448307,4162.2,4162.1,0.02]
[1758652903950,11.98028307,4162.2,4162.1,0.02]
[1758652904464,7.67048307,4162.2,4162.1,0.02]
[1758652904662,13.83248307,4162.2,4162.1,0.02]
[1758652905083,12.35657556,4162.2,4162.1,0.02]
[1758652905388,12.87395382,4162.2,4162.1,0.02]
[1758652905755,9.87395382,4162.2,4162.1,0.02]
[1758652906184,3.71195382,4162.2,4162.1,0.7304]
[1758652906378,7.27857556,4162.2,4162.1,0.7304]
[1758652906687,7.79595382,4162.2,4162.1,0.7304]
[1758652907050,7.27857556,4162.2,4162.1,0.7304]
[1758652907853,4.876,4162.2,4162.1,0.7304]
[1758652908063,7.63817502,4162.2,4162.1,0.7304]
[1758652908592,10.63817502,4162.2,4162.1,0.7304]
[1758652908793,7.44359946,4162.2,4162.1,0.7304]
[1758652908996,9.84617502,4162.2,4162.1,0.7304]
[1758652909303,10.36436751,4162.2,4162.1,0.7304]
[1758652909504,6.28036751,4162.2,4162.1,0.7304]
[1758652909800,4.56259946,4162.2,4162.1,0.7304]
[1758652910002,0.47959946,4162.2,4162.1,0.7304]
[1758652910206,0.47959946,4162.2,4162.1,0.75442633]
[1758652910407,0.47959946,4162.2,4162.1,0.7304]
[1758652912377,0.47959946,4162.2,4162.1,15.2304]
[1758652912607,0.47959946,4162.2,4162.1,16.99411949]
[1758652914116,0.35959946,4162.2,4162.1,16.99411949]
[1758652914290,0.35959946,4162.2,4162.1,19.39675277]
[1758652914614,0.1348498,4162.2,4162.1,23.59975277]
[1758652914816,0.51825311,4163.7,4162.1,21.19711949]
[1758652915016,0.35988934,4163.6,4162.2,8.2312376]
[1758652915215,0.35986185,4163.5,4163.3,0.12]
[1758652915380,0.1349585,4163.4,4163.3,2.52194076]
[1758652915582,0.1349585,4163.4,4163.3,1.02069899]
[1758652915813,0.1349585,4163.4,4163.3,2.54596016]
[1758652916013,0.1349585,4163.4,4163.3,17.75636016]
[1758652916227,0.12,4163.8,4163.6,2.40175945]
[1758652916414,0.12,4163.8,4163.7,0.0240171]
[1758652916612,0.25465768,4163.8,4163.7,0.7344171]
[1758652916816,0.25465768,4163.8,4163.7,1.28821835]
[1758652917013,0.25465768,4163.8,4163.7,0.7344171]
[1758652917524,0.13455032,4163.8,4163.7,3.13612711]
[1758652917711,0.12,4164.2,4163.7,0.7104]
[1758652917914,0.13455109,4164.1,4163.7,0.4657]
[1758652918089,0.13455109,4164.0,4163.8,0.7104]
[1758652918290,0.13455109,4163.9,4163.7,0.46677]
[1758652918494,0.12,4164.2,4163.7,0.46677]
[1758652918495,0.12,4164.2,4163.8,14.5]
[1758652918691,0.13446949,4164.1,4163.8,14.5]
[1758652918894,0.12,4164.2,4163.9,0.7104]
[1758652918895,0.13446949,4164.0,4163.9,0.7104]
[1758652919310,0.12,4164.2,4163.9,0.7104]
[1758652919507,0.13439196,4164.1,4164.0,0.7104]
[1758652920958,0.13439196,4164.1,4163.8,15.96489379]
[1758652920959,0.13439196,4164.1,4163.8,14.5]
[1758652921163,0.36019196,4164.0,4162.8,0.4657]
[1758652921439,2.4018952,4163.4,4162.9,0.02402171]
[1758652921604,2.62546411,4164.1,4162.9,0.02402171]
[1758652921605,0.12,4163.3,4163.0,15.2104]
[1758652921803,0.42,4163.8,4163.1,0.73442056]
[1758652921999,0.12,4163.6,4162.9,0.12]
[1758652922198,2.53622496,4163.5,4162.9,4.4457]
[1758652922427,0.13435992,4163.4,4163.0,0.49114]
[1758652922628,0.12,4163.6,4163.2,14.5]
[1758652922940,0.12,4163.3,4163.2,14.5]
[1758652923103,0.12,4163.3,4163.2,15.2104]
[1758652923104,0.25435061,4163.3,4163.2,15.2104]
[1758652923298,0.25435061,4163.3,4163.2,17.13954]
[1758652923613,0.13434718,4163.7,4163.2,17.13954]
[1758652923816,0.13434718,4163.6,4163.2,14.62]
[1758652924133,0.12,4163.4,4163.2,14.5]
[1758652924748,2.52188343,4163.4,4163.2,14.5]
[1758652924926,0.12,4163.4,4163.3,0.2687194]
[1758652925262,3.0,4164.1,4163.3,0.7104]
[1758652925263,2.52171522,4163.7,4163.3,0.7104]
[1758652925404,0.13434735,4163.6,4163.4,0.2447]
[1758652925604,0.13434735,4163.5,4163.4,0.2447]
[1758652925854,0.13434735,4163.5,4163.4,0.7104]
[1758652926141,0.13434735,4163.6,4163.4,0.7104]
[1758652926342,0.12,4163.7,4163.4,0.7104]
[1758652926558,0.13432899,4163.6,4163.4,0.7104]
[1758652926860,0.13432899,4163.5,4163.4,0.7104]
[1758652927066,0.13432899,4163.6,4163.4,0.7104]
[1758652927381,0.2258,4163.6,4163.2,14.5]
[1758652927510,0.12,4163.4,4163.2,14.5]
[1758652927712,0.12,4163.4,4163.2,15.2104]
[1758652929015,0.12,4163.4,4163.3,0.2447]
[1758652929330,0.12,4163.4,4163.2,14.9657]
[1758652929525,0.12,4163.4,4163.3,0.0240194]
[1758652929724,0.12,4163.4,4163.3,0.7344194]
[1758652930853,0.12,4163.4,4163.3,0.7104]
[1758652931051,0.12,4163.4,4163.2,18.58]
[1758652931340,0.12,4163.4,4163.2,19.0292]
[1758652931509,0.12,4163.4,4163.3,0.7206194]
[1758652932240,0.12,4163.4,4163.3,0.2714194]
[1758652932450,0.12,4163.4,4163.3,0.0240194]
[1758652934363,0.25442562,4163.4,4163.2,18.58]
[1758652934518,0.12,4163.4,4163.2,4.08]
[1758652934712,0.12,4163.4,4163.2,4.3187]
[1758652934988,0.12,4163.4,4163.3,14.5240194]
[1758652935112,0.25442562,4163.4,4163.3,14.5]
[1758652936347,0.25442562,4163.4,4163.3,14.7387]
[1758652937233,0.25442562,4163.4,4163.3,17.07437]
[1758652937445,0.25442562,4163.4,4163.3,19.47631076]
[1758652937665,0.12,4163.9,4163.4,2.40188307]
[1758652937965,0.13457288,4163.8,4163.5,7.19733335]
[1758652938114,0.12,4163.9,4163.6,2.46804613]
[1758652938465,0.13461931,4163.8,4163.7,18.6030171]
[1758652938614,0.13461931,4163.8,4163.7,21.67321001]
[1758652938952,0.001,4164.1,4163.9,2.40157933]
[1758652939151,0.001,4164.1,4164.0,2.41947893]
[1758652939313,0.001,4164.1,4164.0,3.11805234]
[1758652939314,0.13560822,4164.1,4164.0,3.11805234]
[1758652939517,0.13560822,4164.1,4164.0,17.71403698]
[1758652939934,0.13560822,4164.1,4164.0,15.3125]
[1758652940665,0.13560822,4164.1,4164.0,14.62]
[1758652940851,0.13560822,4164.1,4164.0,14.5]
[1758652941466,0.13560822,4164.1,4164.0,15.1925]
[1758652941648,0.13560822,4164.1,4164.0,17.35980507]
[1758652941959,0.13560822,4164.1,4164.0,16.66730507]
[1758652942528,0.13560822,4164.1,4164.0,17.35980507]
[1758652943359,0.3604178,4164.1,4164.0,17.35980507]
[1758652944168,0.3604178,4164.1,4164.0,16.66730507]
[1758652944464,0.3604178,4164.1,4164.0,20.74530507]
[1758652944673,0.3604178,4164.1,4164.0,23.83934205]
[1758652944855,0.13560822,4164.1,4164.0,23.83934205]
[1758652945731,0.13560822,4164.1,4164.0,23.95834205]
[1758652945932,0.001,4164.3,4164.0,23.95834205]
[1758652945933,0.001,4164.3,4164.2,2.40142164]
[1758652946167,0.001,4164.3,4164.2,15.77677737]
[1758652946340,0.001,4164.3,4164.2,16.44526316]
[1758652946667,0.001,4164.3,4164.2,24.67092164]
[1758652947273,0.001,4164.3,4164.2,14.5]
[1758652947475,0.001,4164.3,4164.2,16.43081239]
[1758652947639,0.001,4164.3,4164.2,20.50781239]
[1758652947834,0.001,4164.3,4164.2,22.90923403]
[1758652948062,0.001,4164.3,4164.2,23.60173403]
[1758652948247,0.001,4164.3,4164.2,21.20031239]
[1758652948447,0.001,4164.3,4164.2,23.60173403]
[1758652949571,0.001,4164.3,4164.2,20.74651239]
[1758652950174,0.001,4164.3,4164.2,23.14793403]
[1758652950476,0.001,4164.3,4164.2,22.90923403]
[1758652950650,0.001,4164.3,4164.2,23.60173403]
[1758652952172,0.001,4164.3,4164.2,21.20031239]
[1758652952350,0.001,4164.3,4164.2,23.60173403]
[1758652952837,0.001,4164.3,4164.2,21.20031239]
[1758652953040,0.001,4164.3,4164.2,23.60173403]
[1758652953238,0.001,4164.3,4164.2,19.52473403]
[1758652953437,0.001,4164.3,4164.2,23.60073403]
[1758652953666,0.001,4164.3,4164.2,21.19931239]
[1758652953865,0.001,4164.3,4164.2,23.60073403]
[1758652954061,0.001,4164.3,4164.2,21.19931239]
[1758652954274,0.001,4164.3,4164.2,23.14693403]
[1758652954450,0.001,4164.3,4164.2,23.60073403]
[1758652955281,0.001,4164.3,4164.2,23.69696849]
[1758652956074,0.001,4164.3,4164.2,23.81696849]
[1758652956473,0.001,4164.3,4164.2,26.81696849]
[1758652958476,0.001,4164.3,4164.2,23.12346849]
[1758652958897,0.001,4164.3,4164.2,20.62581239]
[1758652959086,0.001,4164.3,4164.2,23.02723403]
[1758652959498,0.001,4164.3,4164.2,20.62581239]
[1758652960016,0.001,4164.3,4164.2,20.50581239]
[1758652960598,0.001,4164.3,4164.2,22.90723403]
[1758652960783,0.001,4164.3,4164.2,20.50581239]
[1758652961481,0.001,4164.3,4164.2,22.90723403]
[1758652961681,0.001,4164.3,4164.2,20.50581239]
[1758652961881,0.001,4164.3,4164.2,22.90723403]
[1758652962277,0.001,4164.3,4164.2,20.50581239]
[1758652963180,0.13574629,4164.3,4164.2,20.50581239]
[1758652963911,0.001,4164.3,4164.2,23.59243403]
[1758652966417,0.001,4164.3,4164.2,25.66843403]
[1758652967229,0.13592566,4164.3,4164.2,25.66843403]
[1758652967407,0.13592566,4164.3,4164.2,23.26701239]
[1758652967731,0.13592566,4164.3,4164.2,25.66843403]
[1758652968288,0.13592566,4164.3,4164.2,18.83223403]
[1758652968481,0.13592566,4164.3,4164.2,23.15283403]
[1758652968685,0.13592566,4164.3,4164.2,23.59143403]
[1758652969930,0.13592566,4164.3,4164.2,23.15283403]
[1758652970089,0.13592566,4164.3,4164.2,23.71143403]
[1758652970923,0.37582566,4164.3,4164.2,23.02623403]
[1758652971231,0.37582566,4164.3,4164.2,14.5]
[1758652971385,2.40142164,4164.2,4164.1,0.004]
[1758652971585,2.88136099,4164.2,4164.1,4.078]
[1758652971814,3.54996099,4164.2,4164.1,18.578]
[1758652972635,3.54996099,4164.2,4164.1,0.004]
[1758652972795,4.9371887,4164.2,4164.1,0.004]
[1758652972995,5.4556872,4164.2,4164.1,0.004]
[1758652973520,4.6636872,4164.2,4164.1,0.004]
[1758652973715,4.1451887,4164.2,4164.1,0.004]
[1758652974432,4.14519682,4164.2,4164.1,0.004]
[1758652976537,1.74377518,4164.2,4164.1,0.004]
[1758652976743,0.35994747,4164.2,4164.1,0.004]
[1758652976899,0.35994747,4164.2,4164.1,0.02801479]
[1758652977100,0.35994747,4164.2,4164.1,17.6146941]
[1758652977402,0.13493378,4164.2,4164.1,21.66467931]
[1758652979525,0.13493378,4164.2,4164.1,18.577]
[1758652979726,0.13493378,4164.2,4164.1,14.504]
[1758652980036,0.37483378,4164.2,4164.1,0.004]
[1758652980443,0.37483378,4164.2,4164.1,14.504]
[1758652980606,0.13493378,4164.2,4164.1,16.90547931]
[1758652980804,0.13493378,4164.2,4164.1,19.24348618]
[1758652981241,0.13493378,4164.2,4164.1,19.49008618]
[1758652981547,0.001,4164.3,4164.2,2.40142164]
[1758652981748,0.13582206,4164.3,4164.2,6.74503585]
[1758652981906,0.13582206,4164.3,4164.2,7.15962164]
[1758652982218,0.001,4164.3,4164.2,24.69313174]
[1758652983437,0.001,4164.3,4164.2,18.54313174]
[1758652983645,0.001,4164.3,4164.2,24.69313174]
[1758652984311,0.001,4164.3,4164.2,18.54313174]
[1758652984526,0.001,4164.3,4164.2,24.69313174]
[1758652986148,0.001,4164.3,4164.2,27.69313174]
[1758652986329,0.001,4164.3,4164.2,27.7893551]
[1758652986737,0.001,4164.3,4164.2,27.9093551]
[1758652987952,0.001,4164.3,4164.2,17.85793174]
[1758652988249,0.2409,4164.3,4164.2,20.97342164]
[1758652988419,0.37565144,4164.3,4164.2,20.97342164]
[1758652988614,0.37565144,4164.3,4164.2,16.90142164]
[1758652988816,0.37565144,4164.3,4164.2,20.97342164]
[1758652989018,0.37565144,4164.3,4164.2,18.572]
[1758652989218,0.80435144,4164.3,4164.2,14.5]
[1758652989418,0.80435144,4164.3,4164.2,18.572]
[1758652989419,0.13575144,4164.3,4164.2,18.572]
[1758652989855,0.13575144,4164.3,4164.2,14.5]
[1758652990027,0.80435144,4164.3,4164.2,18.572]
[1758652990618,0.37565144,4164.3,4164.2,18.572]
[1758652991459,0.80615144,4164.3,4164.2,18.572]
[1758652994322,0.80615144,4164.3,4164.2,14.5]
[1758652994566,3.43212072,4164.3,4164.2,14.5]
[1758652994868,2.40142164,4164.2,4164.1,0.004]
[1758652995034,0.35935675,4164.2,4164.1,0.004]
[1758652995247,2.98697839,4164.2,4164.1,0.004]
[1758652995550,3.41467839,4164.2,4164.1,0.004]
[1758652995956,1.01325675,4164.2,4164.1,0.004]
[1758652996265,3.41467839,4164.2,4164.1,0.004]
[1758652996470,3.99637793,4164.2,4164.1,0.004]
[1758652996765,4.78837793,4164.2,4164.1,0.004]
[1758652996968,7.78837793,4164.2,4164.1,0.004]
[1758652997134,8.30589113,4164.2,4164.1,0.004]
[1758652999476,10.38289113,4164.2,4164.1,0.004]
[1758653001674,10.38267663,4164.2,4164.1,0.004]
[1758653003793,6.31347931,4164.1,4163.6,0.004]
[1758653004108,6.83982197,4163.7,4163.6,1e-08]
[1758653004271,11.78817929,4163.7,4163.6,1e-08]
[1758653004472,12.44207929,4163.7,4163.6,1e-08]
[1758653005798,12.44149337,4163.7,4163.6,1e-08]
[1758653006099,13.36645727,4163.7,4163.6,1e-08]
[1758653006266,14.0116291,4163.7,4163.6,1e-08]
[1758653007807,3.19394076,4163.3,4163.2,1e-08]
[1758653008003,12.70249709,4163.3,4163.2,1e-08]
[1758653008183,13.87391029,4163.3,4163.2,1e-08]
[1758653008501,15.41948239,4163.3,4163.2,1e-08]
[1758653011810,15.89328364,4163.3,4163.2,1e-08]
[1758653012389,23.08328364,4163.3,4163.2,1e-08]
[1758653012580,23.08328364,4163.3,4162.0,0.004]
[1758653012581,5.40263328,4162.1,4162.0,0.004]
[1758653012779,10.74518961,4162.1,4162.0,0.004]
[1758653013126,11.55308915,4162.1,4162.0,0.004]
[1758653013682,11.67097524,4162.1,4162.0,0.004]
[1758653016505,11.67097524,4162.1,4161.7,0.004]
[1758653016685,6.19480647,4161.8,4161.7,0.004]
[1758653016888,10.6263628,4161.8,4161.7,0.004]
[1758653017086,12.60284402,4161.8,4161.7,0.004]
[1758653018016,6.31486421,4161.7,4161.6,1e-08]
[1758653018222,7.61628539,4161.7,4161.6,1e-08]
[1758653018410,7.84248539,4161.7,4161.6,1e-08]
[1758653018722,9.41326312,4161.7,4161.6,1e-08]
[1758653019225,8.75936312,4161.7,4161.6,1e-08]
[1758653019602,8.98556312,4161.7,4161.6,1e-08]
[1758653020392,9.41326312,4161.7,4161.6,1e-08]
[1758653021315,36.63509961,4161.7,4161.6,1e-08]
[1758653023527,35.98119961,4161.7,4161.6,1e-08]
[1758653023729,36.22419961,4161.7,4161.6,1e-08]
[1758653024722,22.47737787,4161.7,4161.6,1e-08]
[1758653026439,5.40338396,4160.8,4159.9,0.6968]
[1758653026713,3.19573058,4160.2,4159.9,0.6968]
[1758653026902,7.62728691,4160.2,4159.9,0.6968]
[1758653027306,10.62728691,4160.2,4159.9,0.6968]
[1758653027503,11.14306147,4160.2,4159.6,0.4707]
[1758653027806,11.14306147,4160.2,4159.2,14.5]
[1758653027807,12.68863357,4160.2,4160.1,0.7168]
[1758653028413,12.68863357,4160.2,4160.1,0.2461]
[1758653028612,12.68863357,4160.2,4160.1,0.02]
[1758653029207,7.07006147,4160.2,4160.1,0.7168]
[1758653029413,11.14306147,4160.2,4160.1,0.7168]
[1758653031236,11.63304498,4160.2,4160.1,0.7168]
[1758653031749,18.82304498,4160.2,4160.1,0.7168]
[1758653033448,18.82304498,4160.2,4160.1,0.02]
[1758653033675,21.83805025,4160.2,4160.1,0.02]
[1758653034186,22.29285025,4160.2,4160.1,0.02]
[1758653034488,21.19331662,4160.2,4160.1,0.02]
[1758653036992,20.95031662,4160.2,4160.1,0.02]
[1758653037378,21.64811662,4160.2,4160.1,1e-08]
[1758653038601,3.19630852,4159.2,4159.1,0.02]
[1758653038907,7.62786485,4159.2,4159.1,0.2461]
[1758653039104,8.14363941,4159.2,4159.1,0.7168]
[1758653040705,8.14363941,4159.2,4159.1,0.02]
[1758653040919,8.14363941,4159.2,4159.1,0.2461]
[1758653041321,8.14363941,4159.2,4159.1,0.7168]
[1758653042318,8.64188043,4159.2,4159.1,0.02]
[1758653042683,8.64188043,4159.2,4159.1,0.7168]
[1758653043190,9.28745381,4159.2,4159.1,0.2461]
[1758653043376,8.64188043,4159.2,4159.1,0.2461]
[1758653043581,15.83188043,4159.2,4159.1,0.2461]
[1758653043969,15.83188043,4159.2,4159.1,0.7168]
[1758653044310,15.97921279,4159.2,4159.1,0.7168]
[1758653044891,8.78921279,4159.2,4159.1,0.7168]
[1758653045771,8.78921279,4159.2,4157.8,2.52511799]
[1758653045772,11.14363941,4159.2,4158.2,14.5]
[1758653045976,11.14363941,4159.2,4158.3,0.6968]
[1758653045977,3.19681074,4158.4,4158.3,0.6968]
[1758653046178,2.40482889,4158.3,4157.2,2.40542776]
[1758653046406,7.35221761,4158.2,4157.3,14.5]
[1758653046771,7.35221761,4158.2,4158.1,0.4907]
[1758653047004,7.35221761,4158.2,4158.1,0.7168]
[1758653048281,4.94733089,4158.2,4158.1,0.7168]
[1758653048499,0.87433089,4158.2,4158.1,0.7168]
[1758653048774,0.35855633,4158.2,4158.1,0.7168]
[1758653050013,7.62844305,4158.2,4158.1,0.2461]
[1758653050186,8.14557889,4158.2,4158.1,0.7168]
[1758653052017,9.20061395,4158.2,4158.1,0.02]
[1758653052177,9.44411395,4158.2,4158.1,0.02]
[1758653052380,9.90891395,4158.2,4158.1,0.02]
[1758653052799,9.44411395,4158.2,4158.1,0.02]
[1758653054177,4.07257889,4158.2,4158.1,0.02]
[1758653054389,8.14557889,4158.2,4158.1,0.6871]
[1758653054597,8.79237784,4158.2,4158.1,0.02]
[1758653055193,8.14557889,4158.2,4158.1,0.02]
[1758653055415,8.14557889,4158.2,4158.1,0.6871]
[1758653055600,4.07257889,4158.2,4158.1,0.6871]
[1758653055820,8.14557889,4158.2,4158.1,0.6871]
[1758653055996,4.07257889,4158.2,4158.1,0.6871]
[1758653056194,8.14557889,4158.2,4158.1,0.6871]
[1758653056427,8.14557889,4158.2,4158.1,0.02]
[1758653056632,9.49764608,4158.2,4158.1,0.02]
[1758653057315,4.07257889,4158.2,4158.1,0.02]
[1758653057496,1.66769217,4158.2,4158.1,0.6871]